bitfinex/quotes_ETHUSD_20260202
["timestamp","ask_amount","ask_price","bid_price","bid_amount"]
[1770020283848,0.1024,2248.3,2247.0,0.001]
[1770020283849,0.1024,2247.9,2247.0,0.001]
[1770020285034,0.1024,2248.0,2247.0,0.001]
[1770020285234,0.95594238,2247.9,2247.0,0.001]
[1770020285419,0.1024,2248.0,2247.0,0.001]
[1770020286128,0.95511214,2247.9,2247.0,0.001]
[1770020286315,0.1024,2248.2,2247.0,0.001]
[1770020286516,0.1024,2248.0,2247.0,0.001]
[1770020289119,0.1024,2248.0,2247.2,0.001]
[1770020293514,0.1024,2248.0,2246.6,1.2893891]
[1770020294654,0.1024,2248.0,2246.6,1.24926443]
[1770020294813,0.1024,2248.0,2246.0,13.67103486]
[1770020294814,0.1024,2247.7,2246.0,13.67103486]
[1770020295020,0.1024,2247.5,2246.0,13.67103486]
[1770020295236,0.1024,2247.5,2246.0,13.66883486]
[1770020295438,0.1024,2247.5,2246.0,15.03581835]
[1770020296012,0.1024,2248.0,2246.0,15.03581835]
[1770020296229,0.1024,2247.8,2246.0,15.03581835]
[1770020296727,0.933,2247.7,2246.0,15.03581835]
[1770020297133,0.933,2247.7,2245.5,0.0018]
[1770020297134,12.67645868,2247.3,2245.5,0.0018]
[1770020297329,12.77885868,2247.0,2245.5,0.0018]
[1770020297514,0.1024,2246.8,2245.5,0.0018]
[1770020298040,0.1024,2246.6,2245.5,0.0018]
[1770020298941,0.1024,2246.8,2245.5,0.0018]
[1770020299150,1.49687271,2246.8,2245.5,0.0018]
[1770020299958,0.1024,2246.8,2245.5,0.0018]
[1770020300955,0.1024,2246.8,2245.5,13.67183486]
[1770020301119,0.1024,2246.8,2245.7,0.001]
[1770020301325,12.67645868,2246.7,2245.5,0.0018]
[1770020301524,0.1024,2246.8,2244.6,13.67003486]
[1770020301525,0.3359703,2246.4,2244.6,13.67003486]
[1770020301722,0.1024,2246.2,2244.6,13.67003486]
[1770020301948,1.94888292,2246.4,2244.8,13.67083486]
[1770020301949,0.1024,2246.0,2244.8,13.67083486]
[1770020302638,0.2335703,2245.9,2244.8,0.0008]
[1770020302818,0.1024,2246.0,2244.8,0.0008]
[1770020303732,0.1024,2246.0,2244.8,13.67083486]
[1770020303934,0.1024,2246.0,2244.9,1.36708349]
[1770020304135,0.1024,2246.0,2244.6,0.001]
[1770020304343,0.1024,2245.8,2244.6,0.001]
[1770020304652,0.1024,2246.0,2244.6,13.67103486]
[1770020305227,0.1024,2246.0,2244.6,12.90669595]
[1770020305425,12.77885868,2246.0,2244.1,13.67083486]
[1770020305624,0.1024,2245.8,2244.1,13.67083486]
[1770020306733,0.1024,2245.8,2244.2,13.67103486]
[1770020307141,0.3359703,2245.8,2244.2,13.67103486]
[1770020307342,0.3359703,2245.8,2242.7,14.00609542]
[1770020307343,12.67645868,2245.5,2242.7,14.00609542]
[1770020307549,1.18755418,2244.7,2242.7,13.85449542]
[1770020307734,0.0016,2244.7,2242.7,13.67003486]
[1770020308064,0.934,2244.6,2242.7,13.67003486]
[1770020308364,0.1024,2244.5,2242.9,13.67003486]
[1770020308563,0.0016,2244.7,2242.9,13.67003486]
[1770020309166,0.1024,2244.9,2243.2,13.67003486]
[1770020309349,0.1024,2244.9,2243.6,13.67003486]
[1770020309977,0.934,2245.6,2243.6,13.67003486]
[1770020310159,0.934,2245.6,2243.8,13.67003486]
[1770020310980,0.0016,2246.1,2244.2,13.67003486]
[1770020311188,0.0016,2246.1,2244.4,14.78388775]
[1770020311539,0.0016,2246.9,2245.0,13.67003486]
[1770020311840,0.0016,2246.9,2245.2,13.67003486]
[1770020312051,0.104,2246.9,2245.4,13.67003486]
[1770020312473,0.0016,2246.9,2245.4,13.67003486]
[1770020312768,0.104,2246.9,2245.4,13.67003486]
[1770020313137,0.104,2246.9,2244.9,13.67083486]
[1770020313467,0.95035159,2246.8,2244.9,13.67083486]
[1770020313632,0.1024,2246.6,2245.0,15.03711835]
[1770020314238,0.0011,2245.8,2245.0,15.03711835]
[1770020314434,0.0011,2245.8,2245.0,1.36708349]
[1770020314638,0.1024,2246.8,2245.1,13.67003486]
[1770020315036,0.0016,2246.9,2245.1,13.67003486]
[1770020315271,0.0027,2246.9,2245.1,14.60403486]
[1770020317497,0.934,2247.1,2245.5,13.67003486]
[1770020317779,0.0011,2247.8,2245.9,13.67003486]
[1770020317940,0.0011,2247.8,2246.1,13.28087146]
[1770020319154,0.1024,2247.6,2246.1,13.28087146]
[1770020320168,0.0011,2247.8,2246.1,13.28087146]
[1770020320388,0.0011,2247.8,2246.3,13.28087146]
[1770020320752,0.0011,2247.8,2246.2,0.1024]
[1770020320753,0.9351,2248.9,2246.5,13.28087146]
[1770020320954,0.9351,2248.9,2246.9,13.28087146]
[1770020321154,0.9351,2248.9,2247.1,13.28087146]
[1770020321784,0.1024,2248.8,2247.1,13.28087146]
[1770020322081,0.9351,2248.9,2247.1,13.28167146]
[1770020322288,0.9351,2248.9,2247.1,14.39421571]
[1770020322458,0.0011,2248.9,2247.3,13.28087146]
[1770020322661,0.23265175,2249.7,2247.8,13.28087146]
[1770020322867,0.0011,2249.9,2248.0,13.28087146]
[1770020323182,0.0011,2249.9,2248.3,0.2335703]
[1770020323350,0.0011,2249.9,2248.4,13.28087146]
[1770020324883,0.0011,2249.9,2248.6,13.28087146]
[1770020325052,0.0011,2250.1,2248.7,15.56631564]
[1770020326551,0.0011,2250.1,2248.7,14.63231564]
[1770020326755,0.0011,2250.1,2248.7,13.28087146]
[1770020326983,0.0011,2249.7,2248.7,13.28087146]
[1770020327950,0.0011,2249.7,2248.2,13.57339206]
[1770020331192,0.0011,2249.9,2248.3,12.64039206]
[1770020331393,0.0011,2250.3,2248.9,12.64039206]
[1770020331700,0.0011,2250.5,2249.1,12.64039206]
[1770020332287,0.0011,2250.5,2249.2,0.2335703]
[1770020332495,0.0011,2251.1,2249.3,12.64039206]
[1770020332694,0.0011,2251.1,2249.5,12.64039206]
[1770020332910,0.0011,2251.1,2249.7,12.64039206]
[1770020333899,0.0011,2251.5,2250.0,12.64039206]
[1770020334096,0.0011,2251.7,2250.1,12.64039206]
[1770020334297,0.433,2253.0,2250.4,12.64039206]
[1770020334471,0.0032,2253.3,2250.6,12.87396236]
[1770020334862,0.0032,2253.3,2251.0,12.64039206]
[1770020335064,0.0032,2253.3,2251.2,12.64039206]
[1770020335496,0.0032,2253.3,2251.4,12.64039206]
[1770020335695,0.0032,2253.3,2251.6,12.64039206]
[1770020335895,0.0032,2253.3,2251.7,0.933]
[1770020336095,0.0032,2253.3,2251.6,12.64039206]
[1770020336096,0.0032,2253.3,2251.6,13.57339206]
[1770020337614,0.1024,2253.2,2251.6,0.933]
[1770020337926,13.2549732,2253.2,2251.1,12.64039206]
[1770020338075,0.1024,2253.0,2251.1,12.64039206]
[1770020338269,13.3861435,2252.7,2250.6,12.64039206]
[1770020338472,13.2549732,2252.5,2250.6,12.64039206]
[1770020338691,13.2549732,2252.3,2250.5,0.932]
[1770020339678,0.1024,2252.3,2250.5,13.57239206]
[1770020339888,13.1525732,2252.3,2250.6,1.35723921]
[1770020340087,0.1024,2252.2,2250.0,12.64039206]
[1770020340528,0.37042177,2254.0,2252.2,12.64039206]
[1770020340822,0.0011,2253.3,2252.1,0.0008]
[1770020340979,0.1035,2253.3,2252.1,0.0008]
[1770020341174,13.2560732,2253.3,2251.4,0.0008]
[1770020341825,13.2549732,2253.1,2251.4,0.0008]
[1770020342153,13.2549732,2252.9,2251.4,0.0008]
[1770020342289,0.1024,2252.7,2251.4,0.0008]
[1770020343429,0.1024,2252.7,2250.8,10.25858594]
[1770020343430,0.2335703,2252.4,2250.8,10.25858594]
[1770020343728,0.77656489,2252.2,2250.8,22.898978]
[1770020344099,0.77656489,2252.2,2250.8,10.25858594]
[1770020344302,1.17734412,2253.6,2251.1,12.64039206]
[1770020344527,0.23331696,2254.3,2252.0,12.64039206]
[1770020344699,0.9331,2254.3,2252.0,12.64039206]
[1770020345023,14.0856732,2254.3,2252.0,12.64039206]
[1770020345186,13.1536732,2254.3,2252.0,12.64039206]
[1770020345528,2.24736732,2254.2,2252.2,12.64039206]
[1770020345734,0.932,2254.2,2252.2,12.64039206]
[1770020345919,0.0011,2254.3,2252.2,13.75040381]
[1770020346101,0.0011,2254.3,2252.4,12.64039206]
[1770020347118,0.587,2254.2,2252.4,12.64039206]
[1770020347323,0.717,2254.2,2252.6,12.64039206]
[1770020347521,0.0011,2254.3,2252.8,12.64039206]
[1770020347724,0.932,2254.2,2252.8,12.64039206]
[1770020348127,0.0011,2254.3,2252.8,12.64039206]
[1770020348435,13.41489249,2254.2,2251.8,12.57141997]
[1770020348734,0.0011,2254.3,2251.8,12.57141997]
[1770020348735,0.932,2254.1,2252.3,13.26657427]
[1770020349093,0.932,2254.1,2251.9,1.257142]
[1770020349094,0.1024,2254.0,2251.9,14.52371627]
[1770020349344,0.2335703,2253.7,2251.9,14.52371627]
[1770020349550,0.1024,2253.8,2251.9,14.52371627]
[1770020349891,0.1024,2253.6,2251.9,1.257142]
[1770020350092,0.1024,2253.6,2252.0,1.27183465]
[1770020350288,0.0011,2254.3,2252.0,1.27183465]
[1770020350494,0.1024,2254.2,2252.0,14.53840892]
[1770020350693,0.1024,2254.0,2252.0,14.53840892]
[1770020351318,0.931,2253.9,2252.0,14.53840892]
[1770020351525,0.1024,2254.0,2252.1,1.45384089]
[1770020351725,0.931,2253.9,2252.1,1.45384089]
[1770020351906,13.07892219,2254.0,2252.1,1.45384089]
[1770020352102,0.1024,2253.8,2252.1,1.45384089]
[1770020352422,0.931,2253.7,2252.1,1.45384089]
[1770020352611,0.931,2253.7,2252.2,0.27356755]
[1770020352822,0.1024,2253.8,2252.2,0.001]
[1770020353013,0.931,2253.7,2252.2,0.001]
[1770020353727,0.1024,2253.9,2252.2,0.001]
[1770020353929,0.931,2253.6,2252.2,0.001]
[1770020354516,0.931,2253.5,2252.2,0.001]
[1770020354736,0.1024,2253.0,2251.0,0.001]
[1770020354936,1.42053222,2253.0,2251.0,0.001]
[1770020355244,0.1024,2252.8,2251.0,0.001]
[1770020355792,0.1024,2252.6,2251.0,0.001]
[1770020356599,0.1024,2252.6,2251.0,13.26757427]
[1770020356795,0.931,2252.5,2251.0,13.26757427]
[1770020357000,0.1024,2252.6,2251.0,0.001]
[1770020357261,0.1024,2252.9,2251.0,0.001]
[1770020357544,0.1024,2252.9,2251.0,13.26757427]
[1770020357725,0.1024,2252.7,2251.0,13.26757427]
[1770020358033,1.41067527,2253.4,2251.0,13.26757427]
[1770020358034,1.17710497,2253.4,2251.0,13.26757427]
[1770020358233,14.35842716,2253.2,2251.0,0.001]
[1770020358404,13.31249249,2252.4,2251.0,0.001]
[1770020358598,0.1024,2252.2,2251.0,0.001]
[1770020359603,0.1024,2252.0,2251.0,0.001]
[1770020359805,0.1024,2252.5,2251.0,0.001]
[1770020360108,0.1024,2252.3,2251.0,0.001]
[1770020360500,1.17710497,2252.9,2251.0,13.26757427]
[1770020360704,0.37823772,2252.8,2251.1,14.5933317]
[1770020360898,0.94888295,2252.7,2251.1,14.5933317]
[1770020361100,0.931,2253.3,2251.3,13.26657427]
[1770020361339,1.17710497,2253.8,2251.5,13.26657427]
[1770020361511,2.12707216,2253.8,2251.7,13.26657427]
[1770020361836,2.12707216,2253.8,2251.2,0.2335703]
[1770020361837,2.57142936,2253.7,2251.9,13.26657427]
[1770020362139,1.62146217,2253.6,2251.9,13.26657427]
[1770020362322,0.69046217,2253.5,2252.0,14.5]
[1770020362523,0.69046217,2253.5,2252.0,27.76657427]
[1770020363007,0.931,2253.4,2252.0,27.76657427]
[1770020363208,0.69046217,2253.3,2252.1,2.77665743]
[1770020363937,0.69046217,2253.3,2252.0,13.26657427]
[1770020364141,0.69046217,2253.3,2251.5,13.26657427]
[1770020364326,0.1024,2253.2,2251.5,13.26657427]
[1770020364531,1.78975362,2253.1,2251.5,13.26657427]
[1770020364822,1.64175004,2253.0,2251.5,13.26657427]
[1770020365023,1.96534256,2252.9,2251.6,1.32665743]
[1770020365229,1.6240647,2252.8,2251.6,1.32665743]
[1770020365540,1.5532056,2252.7,2251.6,1.32665743]
[1770020365705,0.58443293,2252.6,2251.6,1.32665743]
[1770020366540,0.931,2252.5,2252.1,0.001]
[1770020366838,0.5218206,2252.4,2251.6,1.32665743]
[1770020367045,0.5218206,2252.4,2251.9,0.001]
[1770020367218,0.931,2252.3,2251.9,0.001]
[1770020367616,0.5218206,2252.4,2251.9,0.001]
[1770020367934,0.5218206,2252.4,2250.9,14.5]
[1770020367935,0.931,2252.3,2250.9,13.26757427]
[1770020368704,0.5218206,2252.4,2251.0,13.26757427]
[1770020368907,0.931,2252.3,2251.1,1.32685743]
[1770020369507,0.931,2252.2,2251.1,14.5934317]
[1770020369753,0.5218206,2252.4,2251.1,14.5934317]
[1770020369913,0.931,2252.1,2251.1,14.5934317]
[1770020370128,0.931,2252.0,2251.1,14.5934317]
[1770020370459,0.931,2252.0,2251.2,1.45944317]
[1770020370606,0.931,2252.0,2251.1,13.26657427]
[1770020370950,0.931,2252.0,2251.0,0.001]
[1770020371510,0.5218206,2252.4,2251.0,0.001]
[1770020371716,0.1024,2252.2,2251.0,0.001]
[1770020371918,0.1024,2252.2,2250.7,0.0008]
[1770020371919,1.27950497,2252.0,2250.7,0.0008]
[1770020372242,0.95208664,2251.9,2250.7,0.0008]
[1770020372542,1.15415916,2251.8,2250.7,0.0008]
[1770020372714,0.931,2251.7,2250.7,0.0008]
[1770020373133,1.88311746,2251.6,2250.7,0.0008]
[1770020373348,0.931,2251.6,2250.7,0.0008]
[1770020374432,0.931,2251.5,2250.7,0.0008]
[1770020375669,0.1024,2252.0,2250.7,0.0008]
[1770020375954,0.95111102,2251.9,2250.7,0.0008]
[1770020376125,0.1024,2252.0,2250.7,0.0008]
[1770020376126,0.931,2251.8,2250.7,0.0008]
[1770020376325,0.36775549,2252.1,2250.7,13.26737427]
[1770020376556,0.95153044,2252.0,2250.8,14.5933117]
[1770020376725,0.932,2251.9,2250.8,14.5933117]
[1770020376935,0.932,2251.9,2250.8,13.26657427]
[1770020378352,0.95280328,2251.8,2250.8,13.26657427]
[1770020378550,0.932,2251.9,2250.8,13.26657427]
[1770020379162,0.932,2251.8,2250.8,13.26657427]
[1770020379333,0.932,2251.7,2250.8,13.26657427]
[1770020379650,0.932,2251.7,2251.0,0.001]
[1770020379858,0.932,2251.7,2250.8,0.001]
[1770020380154,0.95301587,2251.6,2250.8,0.001]
[1770020380346,0.932,2251.7,2250.8,0.001]
[1770020380542,0.95301764,2251.6,2250.8,0.001]
[1770020380746,0.932,2251.6,2250.8,0.001]
[1770020380944,0.95309635,2251.5,2250.8,0.001]
[1770020381146,0.932,2251.6,2250.8,0.001]
[1770020381333,0.95327435,2251.5,2250.8,0.001]
[1770020381528,1.17710497,2251.7,2250.8,0.001]
[1770020381758,1.05567969,2251.6,2250.8,0.001]
[1770020382067,0.1024,2251.6,2250.8,0.001]
[1770020382265,1.17710497,2251.8,2250.8,0.001]
[1770020382461,0.95345624,2251.7,2250.8,13.75456167]
[1770020382664,1.27950497,2252.0,2250.8,13.75456167]
[1770020382831,0.95341815,2251.9,2250.8,13.75456167]
[1770020383036,1.88541815,2251.8,2250.8,13.75456167]
[1770020383236,1.85747373,2252.1,2250.9,15.12909784]
[1770020383560,0.68036876,2252.1,2250.9,15.12909784]
[1770020383734,0.36775549,2252.1,2250.9,15.12909784]
[1770020383935,0.932,2252.0,2250.9,15.12909784]
[1770020384132,0.36775549,2252.1,2250.9,15.12909784]
[1770020384479,0.932,2252.0,2250.9,15.12909784]
[1770020384641,0.36775549,2252.1,2250.9,15.12909784]
[1770020384835,1.29975549,2252.1,2251.1,13.75356167]
[1770020385456,0.932,2252.0,2251.1,13.75356167]
[1770020386160,0.36775549,2252.1,2251.1,13.75356167]
[1770020386464,0.932,2252.0,2251.1,13.75356167]
[1770020386762,0.36775549,2252.1,2251.1,13.75356167]
[1770020386940,0.36775549,2252.1,2251.2,1.52665715]
[1770020387138,0.932,2252.0,2251.2,1.52665715]
[1770020387339,0.36775549,2252.1,2251.2,15.28021882]
[1770020388364,1.19244235,2253.1,2251.3,12.8570807]
[1770020388570,1.885639,2253.0,2251.5,12.8570807]
[1770020388745,0.932,2253.0,2251.6,14.14278877]
[1770020388938,0.932,2253.0,2251.6,1.28570807]
[1770020389140,1.88555222,2252.9,2251.2,14.38373785]
[1770020389336,1.88555222,2252.8,2251.2,14.38373785]
[1770020389659,0.932,2252.7,2251.2,14.38373785]
[1770020390247,0.932,2252.6,2251.2,14.38373785]
[1770020391245,0.1024,2253.0,2251.2,14.38373785]
[1770020391548,1.88581604,2252.9,2251.4,12.8570807]
[1770020391762,0.0011,2252.8,2251.4,12.8570807]
[1770020392573,0.9331,2252.8,2251.4,12.8570807]
[1770020392777,0.35668922,2253.4,2252.0,12.8570807]
[1770020393248,0.35668922,2253.4,2252.2,12.8570807]
[1770020393446,0.35668922,2253.4,2252.3,2.73570807]
[1770020393971,0.35508922,2253.4,2252.3,15.59278877]
[1770020394799,1.58127224,2254.5,2252.3,2.73570807]
[1770020394962,2.37300836,2254.6,2252.8,12.8570807]
[1770020394963,0.0011,2254.6,2252.8,12.8570807]
[1770020395162,0.0011,2254.6,2253.4,12.8570807]
[1770020395675,13.80832271,2255.0,2252.9,28.64278877]
[1770020395849,0.95030663,2254.9,2252.9,28.64278877]
[1770020396046,0.95030663,2254.8,2253.0,12.8570807]
[1770020396251,0.931,2254.7,2253.0,12.8570807]
[1770020396452,0.931,2254.7,2253.1,15.39584299]
[1770020396649,0.28449651,2255.1,2253.1,15.39584299]
[1770020396958,0.28449651,2255.1,2253.7,12.8570807]
[1770020397585,0.28449651,2255.1,2253.9,12.8570807]
[1770020397885,0.0011,2255.2,2254.0,12.8570807]
[1770020398091,0.18041386,2255.3,2254.2,12.8570807]
[1770020398297,0.03086218,2255.8,2254.4,12.8570807]
[1770020398455,0.03086218,2255.8,2254.5,14.5]
[1770020398659,0.03086218,2255.8,2254.6,12.8570807]
[1770020398887,0.38082336,2257.0,2255.0,12.8570807]
[1770020399106,0.00846656,2259.0,2254.9,12.45102251]
[1770020399107,3.95318061,2260.2,2257.4,0.23178166]
[1770020399397,0.35233544,2259.8,2258.0,14.5]
[1770020399552,13.80832271,2260.1,2258.0,14.5]
[1770020399753,0.931,2260.0,2258.0,14.5]
[1770020399981,0.931,2259.9,2258.0,14.5]
[1770020400185,0.931,2259.9,2257.1,12.8570807]
[1770020400186,13.80832271,2259.8,2257.1,12.8570807]
[1770020400347,13.80832271,2259.8,2256.8,0.931]
[1770020400552,14.73500743,2259.8,2256.9,14.5]
[1770020400760,14.73500743,2259.8,2256.5,13.08885734]
[1770020400761,13.80832271,2259.6,2256.5,0.23177664]
[1770020400977,13.80832271,2259.4,2256.5,0.23177664]
[1770020401185,1.10642703,2259.6,2256.5,0.23177664]
[1770020401186,0.2335703,2258.7,2256.5,0.23177664]
[1770020401406,16.07431127,2258.2,2255.9,6.92313422]
[1770020401552,13.80832271,2257.6,2254.7,2.73570807]
[1770020401748,0.2335703,2257.3,2254.2,0.0008]
[1770020402056,16.01802523,2256.4,2254.2,0.0008]
[1770020402254,13.80832271,2254.8,2252.8,0.0008]
[1770020402591,13.80832271,2255.3,2252.8,0.0008]
[1770020402911,13.91072271,2255.8,2253.1,0.931]
[1770020403199,13.80832271,2255.6,2253.2,14.5]
[1770020403348,13.91072271,2255.3,2253.2,14.5]
[1770020403555,13.91072271,2255.3,2252.8,0.0008]
[1770020403785,0.1024,2255.1,2252.8,0.0008]
[1770020404687,0.931,2255.0,2252.8,0.0008]
[1770020404904,13.80832271,2255.2,2252.8,0.0008]
[1770020405079,0.93,2255.1,2252.8,0.0008]
[1770020405492,13.80832271,2256.2,2253.1,0.50150142]
[1770020405689,0.93,2256.1,2253.8,0.2335703]
[1770020405856,0.93,2256.0,2253.8,12.8570807]
[1770020406049,0.93,2256.2,2254.1,12.8570807]
[1770020406281,0.93,2256.2,2253.9,1.28570807]
[1770020406563,14.73832271,2256.1,2253.5,12.8578807]
[1770020406759,0.93,2256.0,2253.7,1.10928695]
[1770020406959,0.93,2256.0,2253.6,13.96639238]
[1770020407163,0.93,2256.0,2253.6,12.8570807]
[1770020407366,0.93,2256.0,2253.7,13.090651]
[1770020407571,0.93,2256.0,2253.8,14.27707891]
[1770020407854,0.1024,2256.6,2253.9,14.21880253]
[1770020407855,0.93,2256.2,2253.9,14.21880253]
[1770020408783,14.15218046,2256.2,2253.9,1.10918851]
[1770020408993,14.15218046,2256.2,2253.8,16.5144642]
[1770020409290,0.93,2256.1,2253.8,16.51445756]
[1770020409591,1.41521805,2256.0,2253.9,2.09515419]
[1770020409894,14.63739851,2256.0,2253.9,2.09515419]
[1770020410757,13.22218046,2255.4,2253.9,2.09515419]
[1770020410959,13.22218046,2255.2,2253.5,0.0008]
[1770020411558,13.22218046,2255.0,2253.5,0.0008]
[1770020411869,0.93,2254.9,2253.5,0.0008]
[1770020412260,0.1024,2255.6,2253.5,0.0008]
[1770020412572,0.93,2255.5,2253.7,1.10928621]
[1770020412768,1.41521805,2256.0,2253.7,15.09451918]
[1770020412769,0.93,2255.6,2253.7,15.09451918]
[1770020412968,13.22218046,2256.3,2253.9,13.98523223]
[1770020413313,0.93,2255.8,2253.9,13.98523223]
[1770020413590,0.93,2255.8,2253.8,1.53280895]
[1770020413591,14.15218046,2255.8,2253.8,1.53280895]
[1770020413805,14.15218046,2255.8,2253.5,0.9308]
[1770020413806,13.32458046,2255.7,2253.5,0.0008]
[1770020414583,13.32458046,2255.3,2253.5,0.0008]
[1770020414786,13.32458046,2254.8,2253.5,0.0008]
[1770020414973,13.22218046,2254.6,2253.5,0.0008]
[1770020415181,13.22218046,2254.6,2252.1,13.98123223]
[1770020415182,13.22218046,2254.5,2252.1,13.98123223]
[1770020415480,0.0016,2253.5,2252.2,1.39812322]
[1770020415659,15.27114661,2254.4,2252.2,15.38335545]
[1770020415660,2.04896615,2254.4,2252.2,15.38335545]
[1770020415867,6.243481,2254.6,2252.6,1.10979855]
[1770020416080,6.243481,2254.6,2252.7,14.21880253]
[1770020416862,6.243481,2254.6,2252.7,15.3285409]
[1770020417064,6.243481,2254.6,2252.3,0.0008]
[1770020417284,0.93,2254.5,2252.4,13.98523223]
[1770020417484,0.93,2254.4,2253.5,0.001]
[1770020418194,14.15218046,2254.4,2252.5,0.001]
[1770020418873,13.32458046,2254.3,2252.5,0.001]
[1770020419475,13.22218046,2253.1,2251.6,0.0018]
[1770020419692,13.22218046,2252.8,2251.6,0.0018]
[1770020419905,13.22218046,2252.5,2251.4,0.001]
[1770020420071,5.96942562,2252.4,2251.4,0.001]
[1770020420273,5.03942562,2252.3,2250.8,0.001]
[1770020420783,14.25458046,2252.2,2250.7,0.0008]
[1770020420990,13.32458046,2251.8,2250.0,0.0008]
[1770020421172,13.32458046,2251.4,2248.7,1.0548762]
[1770020421381,13.22218046,2250.8,2248.7,0.1248762]
[1770020421683,13.32458046,2250.5,2248.7,0.1248762]
[1770020421872,13.32458046,2250.3,2248.7,0.1248762]
[1770020422073,13.32458046,2250.1,2248.7,0.1248762]
[1770020422275,13.32458046,2250.1,2248.2,0.001]
[1770020422276,13.32458046,2249.9,2248.2,0.001]
[1770020422473,0.2335703,2250.1,2247.1,13.99363671]
[1770020422474,0.1024,2249.4,2247.1,13.99363671]
[1770020422674,13.22218046,2249.5,2247.1,13.99363671]
[1770020422675,7.23028202,2249.3,2247.1,13.99363671]
[1770020422909,6.81266682,2249.2,2247.3,15.09767827]
[1770020423698,6.81266682,2249.2,2247.2,1.39936367]
[1770020424016,5.29709902,2249.1,2247.2,16.49707763]
[1770020424315,5.29709902,2249.1,2247.4,13.98523223]
[1770020424479,1.07777416,2250.0,2247.7,13.98523223]
[1770020424674,0.931,2249.9,2247.8,15.61732575]
[1770020424876,2.00877416,2249.9,2247.9,1.11214911]
[1770020425081,2.00877416,2249.9,2248.0,14.21880253]
[1770020425294,2.00877416,2249.9,2248.0,13.98523223]
[1770020426017,0.7611703,2249.8,2248.0,13.98523223]
[1770020426215,0.7611703,2249.8,2248.1,1.39852322]
[1770020426580,0.7611703,2249.8,2247.8,1.39852322]
[1770020427135,1.6921703,2249.8,2247.8,2.51071827]
[1770020427294,0.7611703,2249.8,2247.9,14.32120253]
[1770020427611,0.7611703,2249.8,2248.1,14.21880253]
[1770020428027,0.7611703,2249.8,2248.0,0.931]
[1770020428319,13.32458046,2249.7,2247.2,2.33036367]
[1770020428522,13.32458046,2249.7,2247.7,1.11224028]
[1770020428682,13.32458046,2249.7,2247.3,14.2183486]
[1770020428883,13.32458046,2249.7,2247.3,15.33074514]
[1770020429085,13.32458046,2249.7,2247.3,14.2183486]
[1770020429290,1.40857508,2249.6,2247.4,1.65487123]
[1770020429522,0.932,2249.5,2247.4,1.65487123]
[1770020429822,13.32458046,2249.4,2247.4,1.65487123]
[1770020429987,13.32458046,2249.4,2247.3,0.23311637]
[1770020430394,13.32458046,2249.4,2248.2,0.001]
[1770020430718,13.32458046,2249.0,2247.1,0.0008]
[1770020430923,13.32458046,2249.0,2246.4,1.16469093]
[1770020430924,13.22218046,2248.4,2246.4,0.23269093]
[1770020431125,13.22218046,2247.9,2246.4,0.23269093]
[1770020431418,0.1024,2247.8,2246.4,0.0008]
[1770020431617,1.33245805,2247.8,2247.1,0.001]
[1770020431842,0.23249185,2249.3,2247.1,0.001]
[1770020431843,0.932,2247.7,2247.1,0.001]
[1770020432194,0.932,2247.7,2246.4,0.0008]
[1770020434112,0.1024,2247.6,2246.4,0.0008]
[1770020434315,13.32458046,2247.4,2245.7,0.0008]
[1770020434623,0.2335703,2247.3,2245.7,0.0008]
[1770020434811,13.32458046,2246.9,2245.7,0.0008]
[1770020435009,13.32458046,2246.9,2245.3,0.001]
[1770020435010,13.32458046,2246.7,2245.3,0.001]
[1770020435639,0.932,2246.6,2245.3,0.001]
[1770020437510,13.22218046,2247.2,2245.3,0.001]
[1770020437722,1.35581508,2247.3,2245.3,0.001]
[1770020437937,0.933,2247.2,2245.3,0.001]
[1770020438632,0.933,2247.2,2245.5,13.11978359]
[1770020439014,0.933,2247.2,2245.3,0.001]
[1770020439433,0.933,2247.2,2245.3,1.11440263]
[1770020439652,0.933,2247.2,2245.3,0.001]
[1770020440142,0.933,2247.2,2245.5,1.11333748]
[1770020440434,0.933,2247.2,2245.6,0.55666925]
[1770020441049,0.933,2247.2,2245.7,1.11323863]
[1770020441551,2.005,2249.2,2245.7,1.11323863]
[1770020441552,13.05804267,2248.3,2245.8,13.35335389]
[1770020441845,13.05804267,2248.3,2245.7,1.11323863]
[1770020441846,0.933,2248.2,2246.0,0.2335703]
[1770020442048,1.39910427,2248.1,2246.2,13.35335389]
[1770020442348,0.933,2248.3,2246.2,13.35335389]
[1770020442548,0.933,2248.6,2246.4,13.11978359]
[1770020442752,13.99104267,2248.6,2246.2,0.1024]
[1770020442941,13.99104267,2248.6,2246.3,1.11294128]
[1770020443118,13.99104267,2248.6,2246.4,13.45575389]
[1770020443315,1.39910427,2248.5,2246.5,14.57665311]
[1770020444453,1.39910427,2248.5,2246.5,1.45686952]
[1770020444684,0.0011,2248.1,2246.4,13.22218359]
[1770020444946,0.0011,2248.1,2246.5,0.2335703]
[1770020445149,0.0011,2248.1,2246.6,1.11279266]
[1770020445323,0.0011,2248.1,2246.5,17.80452454]
[1770020445324,0.0011,2248.1,2246.4,0.1024]
[1770020445519,0.0011,2248.1,2246.3,1.1129371]
[1770020445750,0.0011,2248.1,2246.1,5.38513842]
[1770020445751,0.0011,2248.1,2246.2,1.21537761]
[1770020445953,0.0011,2248.1,2246.5,1.11283439]
[1770020446139,0.0011,2248.1,2246.3,0.22507776]
[1770020446532,13.05914267,2248.1,2246.3,0.22507776]
[1770020446851,0.0011,2248.1,2246.4,1.11286615]
[1770020447016,0.0011,2248.1,2246.2,14.232744]
[1770020447217,0.0011,2248.1,2246.2,13.11978359]
[1770020447426,0.0011,2248.1,2246.1,2.04600506]
[1770020447621,12.76405447,2248.1,2246.1,2.04600506]
[1770020447821,1.36970545,2248.0,2246.2,0.33915805]
[1770020448224,14.13265992,2248.0,2246.2,0.33915805]
[1770020448953,14.13265992,2248.0,2246.1,0.933]
[1770020449566,12.76295447,2247.8,2246.1,0.933]
[1770020450361,12.76295447,2247.7,2246.1,0.933]
[1770020451947,0.1024,2247.9,2246.1,0.933]
[1770020452435,0.0011,2248.1,2246.1,0.933]
[1770020452637,0.1024,2248.0,2246.1,0.933]